Cogmind - Beta 12 @@@ ROGUE MODE // 2023.09.09 @ 21:16:41 Player: ILikeMonsters1890 Result: Destroyed by Y-45 Defender with Beam Rifle Performance ------------- Evolutions (2) 1000 Regions Visited (7) 1400 Robots Destroyed (51) 255 Value Destroyed (1053) 1053 Prototype IDs (4) 80 Alien Tech Used (0) 0 Bonus (78) 78 TOTAL SCORE: 3866 Bonus ------- Follower Combat Kills 91 Friendly Fire -13 Cogmind --------- Core Integrity 0/550 Matter 300/300 Energy 100/100 System Corruption 4% Temperature Cool (9) Movement Core (250) Ox4 Location -8/Materials Parts ------- > --- POWER (1) -------- (None) > --- PROPULSION (4) --- (None) > --- UTILITY (4) ------ Medium Storage Unit > --- WEAPON (2) ------- Scythe Scythe > --- INVENTORY (10) --- Nuclear Core Large Storage Unit Signal Interpreter Minigun Mini Grenade Launcher Mini Grenade Launcher Scythe Peak State ------------ > --- POWER ------------ Nuclear Core > --- PROPULSION ------- Aerolev Unit Aerolev Unit Aerolev Unit > --- UTILITY ---------- Medium Storage Unit Seismic Detector Light Armor Plating > --- WEAPON ----------- Scythe Scythe > --- INVENTORY -------- Wheel Wheel Wheel Large Storage Unit Signal Interpreter Minigun Minigun Mini Grenade Launcher Mini Grenade Launcher Scythe [Rating: 25] Favorites ----------- Power Light Ion Engine Engine Light Ion Engine Power Core Nuclear Core Propulsion Aerolev Unit Treads Light Treads Leg Aluminum Leg Wheel Wheel Hover Unit Aerolev Unit Utility Medium Storage Unit Device Seismic Detector Storage Medium Storage Unit Protection Light Armor Plating Weapon Improved Assault Rifle Energy Gun Medium Laser Ballistic Gun Improved Assault Rifle Launcher Mini Grenade Launcher Slashing Weapon Scythe Build | -11 -10 -10 -9 -9 -9 -8 -8 ------- Run | Jun Mat Min Mat Min Exi Min Mat Slots Evolved 4 | . . . 2 . . . 2 Power . | . . . . . . . . Propulsion 2 | . . . 1 . . . 1 Utility 2 | . . . 1 . . . 1 Weapon . | . . . . . . . . Parts Attached 44 | 3 2 2 20 . . 5 12 Power 6 | . . 1 1 . . 1 3 Engine 5 | . . 1 1 . . 1 2 Core 1 | . . . . . . . 1 Reactor . | . . . . . . . . Propulsion 15 | 2 1 1 7 . . . 4 Treads 1 | . . . . . . . 1 Leg . | . . . . . . . . Wheel 10 | 2 1 1 3 . . . 3 Hover 4 | . . . 4 . . . . Flight . | . . . . . . . . Utility 7 | 1 1 . 2 . . . 3 Device 2 | 1 . . . . . . 1 Storage 1 | . 1 . . . . . . Processor . | . . . . . . . . Hackware . | . . . . . . . . Protection 4 | . . . 2 . . . 2 Artifact . | . . . . . . . . Weapon 16 | . . . 10 . . 4 2 Energy Gun 2 | . . . 2 . . . . Energy Cannon . | . . . . . . . . Ballistic Gun 9 | . . . 7 . . 2 . Ballistic Cannon . | . . . . . . . . Launcher 3 | . . . 1 . . 2 . Special Weapon . | . . . . . . . . Impact Weapon . | . . . . . . . . Slashing Weapon 2 | . . . . . . . 2 Piercing Weapon . | . . . . . . . . Special Melee Weapon . | . . . . . . . . Unidentified Prototypes 2 | . . . 2 . . . . Parts Lost 15 | . . 1 . . . . 14 Power 3 | . . . . . . . 3 Propulsion 8 | . . 1 . . . . 7 Utility 4 | . . . . . . . 4 Weapon . | . . . . . . . . Highest Loss Streak 8 | . . 1 . . . . 8 To Critical Strikes . | . . . . . . . . Average Slot Usage (%) 95 | . 100 100 99 100 100 100 70 Engine 11 | . 14 14 11 11 11 11 7 Wheel 9 | . 28 28 3 . . . 3 Hover 20 | . . . 29 33 33 33 20 Device 11 | . 14 14 11 11 11 11 6 Storage 11 | . 14 14 11 11 11 11 9 Protection 6 | . . . 10 11 11 11 5 Energy Gun 5 | . 14 14 3 . . . . Ballistic Gun 16 | . 14 14 18 22 22 21 10 Slashing Weapon 1 | . . . . . . . 7 Naked Turns . | . . . . . . . . Heaviest Build 25 | 15 20 20 25 23 23 23 24 Greatest Support 30 | 20 20 20 30 24 24 24 24 Greatest Overweight (x) 4 | . . . 1 . . . 4 Average Overweight (x) . | . . . . . . . . Largest Inventory Capacity 10 | 8 10 10 10 10 10 10 10 Average Capacity 9 | 8 9 10 10 10 10 10 10 Most Carried 10 | 6 10 10 10 10 10 10 10 Average Carried 9 | 4 9 9 9 10 10 10 9 Final Capacity 10 | 8 10 10 10 10 10 10 10 Final Carried 10 | 6 10 10 10 10 10 10 7 Class Distribution -------------------- 98% | Mutant Dominant Class ---------------- Mutant | -10/Materials Mutant | -10/Mines Mutant | -9/Materials Mutant | -9/Mines Mutant | -9/Exiles Mutant | -8/Mines Mutant | -8/Materials Resources | -11 -10 -10 -9 -9 -9 -8 -8 ----------- Run | Jun Mat Min Mat Min Exi Min Mat Matter Collected 1271 | 287 53 71 456 . . 164 240 Remotely . | . . . . . . . . Salvage Created 1783 | 225 185 204 630 . . 209 330 Parts 120 | 19 7 10 53 . . 14 17 Haulers Intercepted 3 | . 1 . 2 . . . . Recyclers Shooed 3 | 1 . . 1 . . . 1 Parts Field Recycled . | . . . . . . . . Retrieved Matter . | . . . . . . . . Parts Self-Destructed . | . . . . . . . . Prevented . | . . . . . . . . Kills | -11 -10 -10 -9 -9 -9 -8 -8 ------- Run | Jun Mat Min Mat Min Exi Min Mat Combat Hostiles Destroyed 28 | . 2 3 11 . . 6 6 Melee 3 | . . . . . . . 3 Guns 18 | . 2 3 7 . . 3 3 AOE 7 | . . . 4 . . 3 . Classes Destroyed 10 | 3 2 1 2 . . 1 1 Worker 7 | 2 . . 3 . . 1 1 Tunneler 7 | 5 1 . 1 . . . . Hauler 3 | . 1 . 2 . . . . Recycler 4 | 1 . 1 1 . . 1 . Watcher 2 | . . . 2 . . . . Swarmer 9 | . . . 4 . . 5 . Grunt 10 | . 2 2 3 . . . 3 Duelist 1 | . . . . . . 1 . Sentry 7 | . . 1 4 . . . 2 Hunter 1 | . . . . . . . 1 Best Kill Streak 7 | 3 4 2 7 . . 4 2 Combat Bots Only 5 | . 2 1 5 . . 3 2 Max Kills in Single Turn 3 | 1 1 1 3 . . 2 1 Gunslinging 1 | . . . 1 . . . . Exploded 3 | . . . 3 . . 2 . Melee 1 | . . . . . . . 1 Uniques/NPCs Destroyed . | . . . . . . . . Combat | -11 -10 -10 -9 -9 -9 -8 -8 -------- Run | Jun Mat Min Mat Min Exi Min Mat Damage Taken 2315 | . 101 194 219 . . 216 1585 Core 629 | . 24 18 26 . . 11 550 Absorbed by Shields . | . . . . . . . . Regen/Repaired (Parts) 18 | . . . 18 . . . . Core Remaining (%) 91 | 100 . 83 . . . 90 . Volleys Fired 134 | 19 12 16 47 . . 15 25 Largest 2 | 2 2 2 2 . . 2 2 Hottest 75 | 70 70 70 75 . . 46 46 Shots Fired 248 | 38 24 32 80 . . 24 50 Gun 240 | 38 24 32 78 . . 18 50 Cannon . | . . . . . . . . Launcher 8 | . . . 2 . . 6 . Special . | . . . . . . . . Kinetic 176 | 19 12 16 61 . . 18 50 Thermal 64 | 19 12 16 17 . . . . Explosive 8 | . . . 2 . . 6 . Electromagnetic . | . . . . . . . . Robot Hit Streak 13 | 5 8 7 13 . . 5 9 Robot Miss Streak 5 | 2 2 2 5 . . 5 2 Penetration Max . | . . . . . . . . Secondary Targets 1 | . . . 1 . . . . Max Gunslinging Chain 1 | . . . 1 . . . . Shots Hit Robots 158 | 24 15 21 42 . . 10 46 Core Hits 77 | 9 9 10 25 . . 13 11 Critical Kills . | . . . . . . . . Critical Parts Destroyed . | . . . . . . . . Critical Strikes 5 | 2 1 . 1 . . . 1 Burn 4 | 2 1 . 1 . . . . Destroy 1 | . . . . . . . 1 Melee Attacks 15 | . . . . . . . 15 Impact . | . . . . . . . . Slashing 15 | . . . . . . . 15 Piercing . | . . . . . . . . Sneak Attacks 1 | . . . . . . . 1 Combat Hostiles . | . . . . . . . . Follow-up Attacks 1 | . . . . . . . 1 Damage Inflicted 3212 | 316 200 275 866 . . 632 923 Guns 2198 | 316 200 275 671 . . 182 554 Cannons . | . . . . . . . . Explosions 645 | . . . 195 . . 450 . Melee 365 | . . . . . . . 365 Ramming 4 | . . . . . . . 4 Kinetic 1644 | 149 100 138 521 . . 182 554 Thermal 554 | 167 100 137 150 . . . . Explosive 645 | . . . 195 . . 450 . Electromagnetic . | . . . . . . . . Impact . | . . . . . . . . Slashing 365 | . . . . . . . 365 Piercing . | . . . . . . . . Highest Corruption 4 | . . . . . . . 4 Average Corruption 4 | . . . . . . . 4 Corruption Purged . | . . . . . . . . Corruption Blocked . | . . . . . . . . Effects 1 | . . . . . . . 1 Message Errors 1 | . . . . . . . 1 Overload Shots . | . . . . . . . . Overflow Damage 2 | . . . 2 . . . . Projectiles . | . . . . . . . . Explosions 2 | . . . 2 . . . . Melee . | . . . . . . . . Knockbacks . | . . . . . . . . Impact . | . . . . . . . . Kinetic . | . . . . . . . . Secondary . | . . . . . . . . Self-Inflicted Damage 15 | . . . . . . 13 2 Shots 1 | . . . . . . 1 . Rammed 1 | . . . . . . . 1 Targets Rammed 1 | . . . . . . . 1 Kicked . | . . . . . . . . Crushed . | . . . . . . . . Highest Temperature 229 | 47 123 179 229 . . 38 42 Average Temperature 44 | 17 46 88 46 . . 19 9 Received Heat Transfer 945 | . 60 96 87 . . 81 621 Effects 1 | . . . 1 . . . . Energy Bleed 1 | . . . 1 . . . . Siege Activations . | . . . . . . . . Robots Corrupted . | . . . . . . . . Combat Hostiles . | . . . . . . . . Parts Fried . | . . . . . . . . Impact Corruptions . | . . . . . . . . Robots Melted . | . . . . . . . . Combat Hostiles . | . . . . . . . . Parts Melted 3 | 2 . . 1 . . . . Heat Transferred 1924 | 629 370 407 518 . . . . Parts Sabotaged . | . . . . . . . . Parts Stolen . | . . . . . . . . Parts Stripped . | . . . . . . . . Power Chain Reactions . | . . . . . . . . Missiles Intercepted . | . . . . . . . . Alert | -11 -10 -10 -9 -9 -9 -8 -8 ------- Run | Jun Mat Min Mat Min Exi Min Mat Peak Influence 377 | 40 117 125 377 88 . 302 240 Initial 117 | . 26 45 . 68 . . 117 Average 118 | 17 50 97 146 70 . 219 155 Maximum Alert Level 1 | . . . 1 . . 1 1 Low Security (%) 86 | 100 100 100 82 100 . 22 81 Level 1 13 | . . . 17 . . 77 18 Level 2 . | . . . . . . . . Level 3 . | . . . . . . . . Level 4 . | . . . . . . . . Level 5 . | . . . . . . . . High Security . | . . . . . . . . Max Security . | . . . . . . . . Squads Dispatched 3 | . 1 . 1 . . . 1 Investigation 1 | . 1 . . . . . . Extermination . | . . . . . . . . Reinforcement 2 | . . . 1 . . . 1 Assault . | . . . . . . . . Garrison . | . . . . . . . . Intercept . | . . . . . . . . Searches Triggered . | . . . . . . . . Construction Impeded . | . . . . . . . . Haulers Reinforced . | . . . . . . . . Active Scanning Responses . | . . . . . . . . Cargo Convoy Interrupts . | . . . . . . . . Stealth | -11 -10 -10 -9 -9 -9 -8 -8 --------- Run | Jun Mat Min Mat Min Exi Min Mat Distress Signals 3 | . 1 . 1 . . . 1 Communications Jammed . | . . . . . . . . Distress Signals . | . . . . . . . . Times Spotted 56 | . 3 4 17 . . 13 19 Peak Tracking Total 10 | . 2 2 5 . . 4 10 Tactical Retreats 3 | . . . . . . 1 2 Traps | -11 -10 -10 -9 -9 -9 -8 -8 ------- Run | Jun Mat Min Mat Min Exi Min Mat Traps Triggered 1 | . 1 . . . . . . Indirectly . | . . . . . . . . Trap Hack Attempts . | . . . . . . . . Triggered . | . . . . . . . . Disarmed . | . . . . . . . . Reprogrammed . | . . . . . . . . Reused . | . . . . . . . . Traps Extracted . | . . . . . . . . Installed . | . . . . . . . . Triggered . | . . . . . . . . Machines | -11 -10 -10 -9 -9 -9 -8 -8 ---------- Run | Jun Mat Min Mat Min Exi Min Mat Machines Disabled 1 | . . . 1 . . . . Max in Single Turn 1 | . . . 1 . . . . Machines Repaired . | . . . . . . . . Machines Sabotaged . | . . . . . . . . Overloaded Fab Kills . | . . . . . . . . Hacking | -11 -10 -10 -9 -9 -9 -8 -8 --------- Run | Jun Mat Min Mat Min Exi Min Mat Machines Accessed 15 | . 3 . 7 . 4 . 1 Terminals 8 | . 2 . 6 . . . . Fabricators . | . . . . . . . . Repair Stations 2 | . . . 1 . . . 1 Recycling Units 1 | . 1 . . . . . . Scanalyzers . | . . . . . . . . Garrison Access . | . . . . . . . . Total Hacks 78 | . 11 . 16 . 49 . 2 Successful 61 | . 3 . 7 . 49 . 2 Failed 17 | . 8 . 9 . . . . Catastrophic 5 | . 3 . 2 . . . . Database Lockouts . | . . . . . . . . Manual 3 | . 2 . 1 . . . . Terminals 23 | . 9 . 14 . . . . Fabricators . | . . . . . . . . Repair Stations 4 | . . . 2 . . . 2 Recycling Units 2 | . 2 . . . . . . Scanalyzers . | . . . . . . . . Garrison Access . | . . . . . . . . Terminal Hacks 57 | . 3 . 5 . 49 . . Record 49 | . . . . . 49 . . Prototype ID Bank 1 | . 1 . . . . . . Branch Access Points 1 | . . . 1 . . . . Unreport Threat 1 | . . . 1 . . . . Locate Traps 2 | . 1 . 1 . . . . Zone Layout 3 | . 1 . 2 . . . . Fabricator Hacks . | . . . . . . . . Repair Station Hacks 4 | . . . 2 . . . 2 Scan Component 2 | . . . 1 . . . 1 Repair 1 | . . . 1 . . . . Refit 1 | . . . . . . . 1 Recycling Unit Hacks . | . . . . . . . . Scanalyzer . | . . . . . . . . Garrison Access Hacks . | . . . . . . . . Unauthorized Hacks . | . . . . . . . . Terminals . | . . . . . . . . Fabricators . | . . . . . . . . Repair Stations . | . . . . . . . . Recycling Units . | . . . . . . . . Scanalyzers . | . . . . . . . . Garrison Access . | . . . . . . . . Data Cores Recovered . | . . . . . . . . Used . | . . . . . . . . Hacking Detections 10 | . 3 . 6 . . . 1 Full Trace Events . | . . . . . . . . Feedback Events . | . . . . . . . . Feedback Blocked . | . . . . . . . . Robot Schematics Acquired . | . . . . . . . . Robots Built . | . . . . . . . . Authchips . | . . . . . . . . Time . | . . . . . . . . Total Robot Build Rating . | . . . . . . . . Part Schematics Acquired . | . . . . . . . . Parts Built . | . . . . . . . . Authchips . | . . . . . . . . Time . | . . . . . . . . Total Part Build Rating . | . . . . . . . . Parts Repaired 1 | . . . 1 . . . . Time 26 | . . . 26 . . . . Parts Recycled . | . . . . . . . . Recycled Matter . | . . . . . . . . Retrieved Matter . | . . . . . . . . Retrieved Components . | . . . . . . . . Parts Scanalyzed . | . . . . . . . . Part Schematics Acquired . | . . . . . . . . Parts Damaged . | . . . . . . . . Bothacking | -11 -10 -10 -9 -9 -9 -8 -8 ------------ Run | Jun Mat Min Mat Min Exi Min Mat Used RIF Installer . | . . . . . . . . Robots Hacked . | . . . . . . . . Non-combat . | . . . . . . . . Combat . | . . . . . . . . Robot Hacks Applied . | . . . . . . . . Relay Couplers Released . | . . . . . . . . Fabnet Peak Effective % . | . . . . . . . . Robots Rewired . | . . . . . . . . Allies Hacked . | . . . . . . . . Hacks Repelled . | . . . . . . . . Allies | -11 -10 -10 -9 -9 -9 -8 -8 -------- Run | Jun Mat Min Mat Min Exi Min Mat Total Allies 3 | . . . . 3 . . . Largest Group 3 | . . . . 3 1 1 . Highest-Rated Group 40 | . . . . 40 16 16 . Highest-Rated Ally 16 | . . . . 16 16 16 . Total Orders 1 | . . . . 1 . . . GUARD 1 | . . . . 1 . . . Ally Attacks 18 | . . . . 7 . 11 . Total Damage 174 | . . . . 58 . 116 . Kills 6 | . . . . 2 . 4 . Allies Corrupted . | . . . . . . . . Allies Melted . | . . . . . . . . Intel | -11 -10 -10 -9 -9 -9 -8 -8 ------- Run | Jun Mat Min Mat Min Exi Min Mat Robot Analysis Total . | . . . . . . . . Derelict Logs Recovered 2 | . . 2 . . . . . Drone Launches . | . . . . . . . . Drone Recoveries . | . . . . . . . . Exploration | -11 -10 -10 -9 -9 -9 -8 -8 ------------- Run | Jun Mat Min Mat Min Exi Min Mat Turns Passed 2305 | 121 197 438 675 202 217 133 322 Spaces Moved 2410 | 53 175 338 767 284 406 169 218 Core 4 | . . . . . . . 4 Treads . | . . . . . . . . Legs . | . . . . . . . . Wheels 690 | 53 175 338 54 . . . 70 Hover 1716 | . . . 713 284 406 169 144 Flight . | . . . . . . . . Fastest Speed 42 | 80 80 80 42 42 42 42 42 Average Speed 53 | 80 80 80 44 42 42 42 59 Slowest Speed 250 | 80 80 80 95 42 42 42 250 Overloaded Moves . | . . . . . . . . Propulsion Burnouts . | . . . . . . . . Robots Hopped . | . . . . . . . . Cave-ins Triggered . | . . . . . . . . Exploration Rate (%) 45 | 4 29 56 57 62 90 41 25 Regions Visited 7 Branch Regions 4 Pre-discovered Areas 1 | . . . . . 1 . . Known Exits Taken 1 | . . . 1 . . . . Unknown Exits Taken 6 | 1 1 1 . 1 1 1 . Scrap Searched 2 | . . 1 . . . 1 . Spaces Dug 2 | . . . . . . . 2 Terrain Destroyed 59 | . . . 8 . . 49 2 Melee 2 | . . . . . . . 2 Projectile . | . . . . . . . . AOE 57 | . . . 8 . . 49 . Terrain Rammed . | . . . . . . . . Walls Destroyed . | . . . . . . . . Machines Disabled . | . . . . . . . . Actions | -11 -10 -10 -9 -9 -9 -8 -8 --------- Run | Jun Mat Min Mat Min Exi Min Mat Total 3166 | 95 208 473 1027 366 451 204 342 Wait 516 | 7 12 116 175 83 46 15 62 Move 2403 | 52 174 337 766 283 405 168 218 Hop . | . . . . . . . . Pick Up 22 | 7 5 1 7 . . . 2 Fast Attach 13 | 1 . . 6 . . . 6 Attach 8 | . . 1 2 . . . 5 Detach 4 | . . . 1 . . . 3 Swap 23 | 2 2 1 12 . . 5 1 Drop 28 | 7 3 1 11 . . 1 5 Fire 134 | 19 12 16 47 . . 15 25 Melee 14 | . . . . . . . 14 Ram 1 | . . . . . . . 1 Kick . | . . . . . . . . Crush . | . . . . . . . . Escape Stasis . | . . . . . . . . Rewire . | . . . . . . . . Trap . | . . . . . . . . Miscellaneous . | . . . . . . . . Route ------- -11/Junkyard -10/Materials -10/Mines -9/Materials (discovered 3 exits: *Mat / *Min / Sto) -9/Mines (discovered 3 exits: *Mat / *Exi / [*Zio]) -9/Exiles (discovered 2 exits: [*Min x2]) -8/Mines -8/Materials History --------- Turn | Location | Event 5 | -11/Junkyard | Discovered new exit (range 3) 122 | -11/Junkyard | Entered Materials 221 | -10/Materials | Discovered new exit (range 13) 319 | -10/Materials | Entered Mines 324 | -10/Mines | Build established: Mutant 399 | -10/Mines | Discovered new exit (range 7) 451 | -10/Mines | Learned Materials trap positions 494 | -10/Mines | Learned Materials emergency access door positions 523 | -10/Mines | Joined a pair of Derelicts in attacking an 0b10 outpost 541 | -10/Mines | Assembled infested the area 757 | -10/Mines | Entered Materials 757 | -9/Materials | Evolved 2 slots: Propulsion x1, Utility x1 758 | -9/Materials | Loaded intel: 13 trap records 899 | -9/Materials | Repaired Lgt. Armor Plating 1080 | -9/Materials | Identified exit to Mines 1080 | -9/Materials | Identified exit to Storage 1255 | -9/Materials | Discovered new exit (range 7) 1432 | -9/Materials | Entered Mines 1433 | -9/Mines | A Derelict revealed a hidden shortcut to a safe place 1547 | -9/Mines | Assisted by bots powering up and referring to "LRC-V3" 1563 | -9/Mines | Discovered new exit (range 6) 1585 | -9/Mines | Deemed a non-threat by the Exiles lab entrance 1585 | -9/Mines | Discovered new exit (range 5) 1634 | -9/Mines | Entered Exiles 1634 | -9/Exiles | Accompanied by 1 ally 1641 | -9/Exiles | Discovered new exit (range 14) 1646 | -9/Exiles | Met 8R-AWN 1652 | -9/Exiles | Met EX-HEX 1669 | -9/Exiles | Met EX-DEC 1683 | -9/Exiles | Visited The Gauntlet 1735 | -9/Exiles | Learned location of Zion (-7) 1742 | -9/Exiles | Met EX-BIN 1799 | -9/Exiles | Discovered new exit (range 15) 1851 | -9/Exiles | Entered Mines 1851 | -8/Mines | Accompanied by 1 ally 1978 | -8/Mines | Discovered new exit (range 10) 1984 | -8/Mines | Entered Materials 1984 | -8/Materials | Evolved 2 slots: Propulsion x1, Utility x1 2241 | -8/Materials | Lost 4 parts (1p2n1u) 2284 | -8/Materials | Core integrity fell below 50% 2301 | -8/Materials | Core integrity fell below 20% 2306 | -8/Materials | Destroyed by Y-45 Defender with Beam Rifle Last Messages --------------- 02256_ Critical hit (Burn: +37). 02261_ Aerolev Unit destroyed. 02267_ Wheel destroyed. 02269_ Scythe follow-up attack on Y-45 Defender. 02269_ Y-45 Defender destroyed. 02270_ Wheel destroyed. 02273_ Backup Power I destroyed. 02274_ Penetrated by Slug. 02276_ Acquired Lgt. Armor Plating. 02279_ Acquired 20 matter. 02280_ Slug penetrates Wall. 02281_ Acquired Lgt. Treads. 02282_ Lgt. Armor Plating destroyed. 02283_ Penetrated by Slug. 02288_ Critical hit (Burn: +37). 02290_ Penetrated by Slug. 02293_ Lgt. Treads destroyed. 02295_ H-55 Commando destroyed. 02295_ Wheel destroyed. 02305_ G-47 Trooper destroyed. Map ----- +----------------------------------------------------+ | ?###### ## % # #?????????? | | ??????# ## # #?????????? | | ??????# #######+### #?????????? | | ??????# #?????????? | | ????" + % #?????????? | | ???"" # #?????????? | | ?? ?### ##############+##############?????????? | | ? ????#=#?????????????????????????????????????? | | ? ??????#%#?????????????????????????????????????? | | ??#######"######????????????????????????????????? | | ??# #????????????????????????????????? | | ??# """ """ #????????????????????????????????? | | ??# """ """ #????????????????????????????????? | | ??# """ """ #????????????????????????????????? | | ### #??????#######???????????????????? | | ###+################# ! #???????????????????? | | [%[#???????????????????? | | #???????????????????? | | / #???????????????????? | | #################+### #???????????????????? | | #####???# ##Y ##???????????????????? | | #???# [ """ """ ## #????????????????????? | | #????? """ """ ## g#????????????????????? | | #??????? """ """ ##Ygg#????????????????????? | | """ #????????? ##b #????????????????????? | | """ #??????????? ??# @!#????????????????????? | | """ #???????????##+#####%=%#????????????????????? | | ############# * *#????????????????????? | | / #????????????????????? | | ################# #????????????????????? | | ????????????????######## #????????????????????? | | ???????????????????????# #????????????????????? | | ???????????????????????# #????????????????????? | | ???????????????????????# #????????????????????? | | ???????????????????????# #????????????????????? | | ???????????????????????# #????????????????????? | | ???????????????????????# #????????????????????? | | ???????????????????????+ #????????????????????? | | ???????????????????????? #????????????????????? | | ???????????????????????? #????????????????????? | | ???????????????????????? #????????????????????? | | ???????????????????????? ????????????????????? | | ????????????????????????????????????????????????? | | ?????????????????????????????????H??????????????? | | ????????????????????????????????????????????????? | | ????????????????????????????????????????????????? | | ????????????????????????????????????????????????? | | ????????????????????????????????????????????????? | | ????????????????????????????????????????????????? | | | +----------------------------------------------------+ Best States ------------- Heat Dissipation 31 Energy Generation 14 Energy Capacity 250 Matter Stores 300 Matter Capacity 300 Sight Range 16 Terrain Scan Density 10 Armor Coverage 150 Evasion (%) 56 Item Schematics ----------------- None Robot Schematics ------------------ None Fabricated ------------ Nothing Alien Tech Used ----------------- None Achievements -------------- None Challenges ------------ None Game ------ Seed AnalysisChromaticFlail Manual? 0 Play Time 00:34:09 Cumulative 207.8 hours Start 2023.09.09 @ 20:41:59 End 2023.09.09 @ 21:16:41 Sessions 1 Manual Loads 0 Difficulty Rogue Special Mode None Game No. 177 Rogue 177 Adventurer 0 Explorer 0 Win Type - Total 10 Types 7/0/2/1/0/0/0/0/0 Lore% 81 Gallery% 69 Achievement% 58 Wizard Run 0 Options --------- ASCII 0 Keyboard 0 Movement Numpad Keybinds 0 Fullscreen 2 Font 18/Smallcaps Map View 76x50 Tactical HUD 1 Map Filters NONE Filters NONE Steam 1 RUN: 03f188a2-52aa-40bf-aff3-1a5d0a09e670